fUSD/lending_fUSD_20240424
["ID","MTS","AMOUNT","RATE_DAILY","PERIOD"]
[323441634,1713991846779,-1096.33,0.00012054,2]
[323441635,1713991846788,-1204.62,0.00012054,2]
[323441636,1713991846797,-1145.17,0.00012054,2]
[323441637,1713991846806,-670.73,0.00012054,2]
[323441638,1713991846815,-818.13,0.00012054,2]
[323441639,1713991846824,-802.18,0.00012054,2]
[323441640,1713991846834,-500.0,0.00012054,2]
[323441641,1713991846844,-27802.61,0.00012054,2]
[323441642,1713991846853,-926.5,0.00012054,2]
[323441643,1713991846863,-956.63,0.00012054,2]
[323441644,1713991846872,-408.63729976,0.00012054,2]
[323441645,1713991846882,-1022.62,0.00012054,2]
[323441646,1713991846891,-807.35,0.00012054,2]
[323441647,1713991846900,-1268.18,0.00012054,2]
[323441648,1713991846913,-552.13,0.00012054,2]
[323441649,1713991846922,-1304.69,0.00012054,2]
[323441650,1713991846933,-745.21,0.00012054,2]
[323441651,1713991846942,-1518.01,0.00012054,2]
[323441652,1713991846951,-1258.54,0.00012054,2]
[323441653,1713991846960,-500.0,0.00012054,2]
[323441654,1713991846969,-1273.21,0.00012054,2]
[323441655,1713991846978,-500.0,0.00012054,2]
[323441656,1713991846987,-855.16,0.00012054,2]
[323441657,1713991846996,-3556.77,0.00012054,2]
[323441658,1713991847005,-661.08,0.00012054,2]
[323441659,1713991847014,-1147.95,0.00012054,2]
[323441660,1713991847023,-616.17,0.00012054,2]
[323441661,1713991847032,-500.0,0.00012054,2]
[323441662,1713991847041,-711.37,0.00012054,2]
[323441663,1713991847050,-1278.88,0.00012054,2]
[323441664,1713991847059,-500.0,0.00012054,2]
[323441665,1713991847068,-630.07,0.00012054,2]
[323441666,1713991847077,-1352.75,0.00012054,2]
[323441667,1713991847086,-500.0,0.00012054,2]
[323441668,1713991847096,-1942.44,0.00012054,2]
[323441669,1713991847105,-1004.93,0.00012054,2]
[323441670,1713991847114,-500.0,0.00012054,2]
[323441671,1713991847123,-500.0,0.00012054,2]
[323441672,1713991847132,-607.85,0.00012054,2]
[323441673,1713991847141,-970.3,0.00012054,2]
[323441674,1713991847152,-500.0,0.00012054,2]
[323441675,1713991847163,-500.0,0.00012054,2]
[323441676,1713991847172,-2785.8,0.00012054,2]
[323441677,1713991847181,-2017.97,0.00012054,2]
[323441678,1713991847190,-1408.5,0.00012054,2]
[323441679,1713991847199,-1253.8,0.00012054,2]
[323441680,1713991847209,-2871.24,0.00012054,2]
[323441681,1713991847219,-500.0,0.00012054,2]
[323441682,1713991847228,-500.0,0.00012054,2]
[323441683,1713991847237,-1364.69,0.00012054,2]
[323441684,1713991847246,-556.02,0.00012054,2]
[323441685,1713991847256,-1040.15,0.00012054,2]
[323441686,1713991847264,-2840.23,0.00012054,2]
[323441687,1713991847274,-500.0,0.00012054,2]
[323441688,1713991847282,-2059.51,0.00012054,2]
[323441689,1713991847292,-500.0,0.00012054,2]
[323441690,1713991847304,-715.7,0.00012054,2]
[323441691,1713991847313,-500.0,0.00012054,2]
[323441692,1713991847322,-544.33,0.00012054,2]
[323441693,1713991847332,-1817.33,0.00012054,2]
[323441694,1713991847342,-1548.88,0.00012054,2]
[323441695,1713991847351,-987.87,0.00012054,2]
[323441696,1713991847361,-616.24,0.00012054,2]
[323441697,1713991847370,-500.0,0.00012054,2]
[323441698,1713991847382,-3875.02,0.00012054,2]
[323441699,1713991847393,-500.0,0.00012054,2]
[323441700,1713991847403,-1544.0,0.00012054,2]
[323441701,1713991847412,-500.0,0.00012054,2]
[323441702,1713991847422,-1231.43,0.00012054,2]
[323441703,1713991847431,-2789.34,0.00012054,2]
[323441704,1713991847441,-3734.67,0.00012054,2]
[323441705,1713991847450,-8238.28,0.00012054,2]
[323441706,1713991847459,-1407.11,0.00012054,2]
[323441707,1713991847469,-500.0,0.00012054,2]
[323441708,1713991847478,-500.0,0.00012054,2]
[323441709,1713991847488,-1307.71,0.00012054,2]
[323441710,1713991847497,-1027.0,0.00012054,2]
[323441711,1713991847506,-835.89,0.00012054,2]
[323441712,1713991847515,-1276.67,0.00012054,2]
[323441713,1713991847525,-500.0,0.00012054,2]
[323441714,1713991847534,-500.0,0.00012054,2]
[323441715,1713991847543,-1932.45,0.00012054,2]
[323441716,1713991847553,-1468.72,0.00012054,2]
[323441717,1713991847562,-500.0,0.00012054,2]
[323441718,1713991847571,-713.89,0.00012054,2]
[323441719,1713991847580,-846.41,0.00012054,2]
[323441720,1713991847590,-8052.86,0.00012054,2]
[323441721,1713991847599,-500.0,0.00012054,2]
[323441722,1713991847608,-677.71,0.00012054,2]
[323441723,1713991847617,-2920.0,0.00012055,2]
[323441724,1713991847626,-292.04,0.00012055,2]
[323441725,1713991847635,-5000.0,0.00012063,2]
[323441726,1713991847644,-5000.0,0.00012075,2]
[323441727,1713991847654,-10719.32113538,0.00012085,2]
[323441728,1713991847663,-5000.0,0.00012088,2]
[323441729,1713991847672,-5000.0,0.00012098,2]
[323441730,1713991847681,-5000.0,0.000121,2]
[323441731,1713991847690,-516.0,0.00012109,2]
[323441732,1713991847699,-5000.0,0.00012113,2]
[323441733,1713991847708,-5000.0,0.00012115,2]
[323441734,1713991847717,-5000.0,0.00012125,2]
[323441735,1713991847726,-1626.0,0.00012137,2]
[323441736,1713991847735,-4999.98,0.00012138,2]
[323441737,1713991847744,-25000.0,0.00012151,2]
[323441738,1713991847752,-5000.0,0.00012165,2]
[323441739,1713991847762,-5000.0,0.00012175,2]
[323441740,1713991847770,-2258.755748,0.00012175,2]
[323441741,1713991847780,-2258.755748,0.00012175,2]
[323441742,1713991847789,-5000.0,0.00012176,2]
[323441743,1713991847799,-5000.0,0.00012191,2]
[323441744,1713991847808,-5000.0,0.00012212,2]
[323441745,1713991847817,-5000.0,0.0001222,2]
[323441746,1713991847826,-10719.32113538,0.00012221,2]
[323441747,1713991847835,-5000.0,0.00012222,2]
[323441748,1713991847845,-5000.0,0.00012241,2]
[323441749,1713991847854,-378.655689,0.00012241,2]
[323441750,1713991847864,-378.655689,0.00012241,2]
[323441751,1713991847874,-1810.83,0.00012254,2]
[323441752,1713991847882,-5000.0,0.00012274,2]
[323441753,1713991847891,-3142.75,0.00012278,2]
[323441754,1713991847900,-418.94,0.0001229,2]
[323441755,1713991847910,-150.0,0.0001229,2]
[323441756,1713991847919,-150.0,0.0001229,2]
[323441757,1713991847928,-4581.46,0.00012291,2]
[323441758,1713991847937,-5000.0,0.000123,2]
[323441759,1713991847946,-5000.0,0.00012301,2]
[323441760,1713991847954,-5000.0,0.00012308,2]
[323441761,1713991847964,-236.7241979,0.00012309,2]
[323441762,1713991847973,-5000.0,0.00012318,2]
[323441763,1713991847983,-419.35657707,0.00012323,2]
[323441764,1713991847991,-1035.0,0.00012328,2]
[323441765,1713991848000,-500.0,0.00012328,2]
[323441766,1713991848010,-588.89,0.00012328,2]
[323441767,1713991848018,-500.0,0.00012328,2]
[323441768,1713991848028,-647.06,0.00012328,2]
[323441769,1713991848037,-500.0,0.00012328,2]
[323441770,1713991848046,-500.0,0.00012328,2]
[323441771,1713991848055,-840.66,0.00012328,2]
[323441772,1713991848064,-805.34,0.00012328,2]
[323441773,1713991848073,-856.22,0.00012328,2]
[323441774,1713991848082,-500.0,0.00012328,2]
[323441775,1713991848091,-500.0,0.00012328,2]
[323441776,1713991848100,-500.0,0.00012328,2]
[323441777,1713991848110,-500.0,0.00012328,2]
[323441778,1713991848119,-500.0,0.00012328,2]
[323441779,1713991848128,-615.27,0.00012328,2]
[323441780,1713991848137,-574.89,0.00012328,2]
[323441781,1713991848146,-591.14,0.00012328,2]
[323441782,1713991848157,-187.48,0.00012328,2]
[323441783,1713991848166,-150.0,0.00012328,2]
[323441784,1713991848174,-859.61,0.00012328,2]
[323441785,1713991848184,-506.23,0.00012328,2]
[323441786,1713991848193,-842.34,0.00012328,2]
[323441787,1713991848202,-548.43,0.00012328,2]
[323441788,1713991848210,-500.0,0.00012328,2]
[323441789,1713991848219,-500.0,0.00012328,2]
[323441790,1713991848228,-500.0,0.00012328,2]
[323441791,1713991848237,-372.26903956,0.00012328,2]
[323441792,1713991848246,-665.53,0.00012328,2]
[323441793,1713991848255,-500.0,0.00012328,2]
[323441794,1713991848264,-500.0,0.00012328,2]
[323441795,1713991848273,-500.0,0.00012328,2]
[323441796,1713991848282,-736.69,0.00012328,2]
[323441797,1713991848292,-826.15,0.00012328,2]
[323441798,1713991848306,-500.0,0.00012328,2]
[323441799,1713991848315,-500.0,0.00012328,2]
[323441800,1713991848324,-500.0,0.00012328,2]
[323441801,1713991848333,-807.78,0.00012328,2]
[323441802,1713991848342,-2038.9,0.00012328,2]
[323441803,1713991848351,-705.7,0.00012328,2]
[323441804,1713991848360,-1307.93,0.00012328,2]
[323441805,1713991848370,-546.95,0.00012328,2]
[323441806,1713991848379,-1642.17,0.00012328,2]
[323441807,1713991848388,-3738.06,0.00012328,2]
[323441808,1713991848397,-805.45,0.00012328,2]
[323441809,1713991848407,-500.0,0.00012328,2]
[323441810,1713991848416,-500.0,0.00012328,2]
[323441811,1713991848425,-500.0,0.00012328,2]
[323441812,1713991848435,-1911.86,0.00012328,2]
[323441813,1713991848444,-500.0,0.00012328,2]
[323441814,1713991848453,-1296.39,0.00012328,2]
[323441815,1713991848463,-690.75,0.00012328,2]
[323441816,1713991848472,-500.0,0.00012328,2]
[323441817,1713991848481,-857.69,0.00012328,2]
[323441818,1713991848490,-2921.56,0.00012328,2]
[323441819,1713991848498,-1941.91,0.00012328,2]
[323441820,1713991848507,-936.37,0.00012328,2]
[323441821,1713991848516,-500.0,0.00012328,2]
[323441822,1713991848526,-1967.54,0.00012328,2]
[323441823,1713991848535,-500.0,0.00012328,2]
[323441824,1713991848544,-3113.04,0.00012328,2]
[323441825,1713991848553,-621.85,0.00012328,2]
[323441826,1713991848563,-611.57,0.00012328,2]
[323441827,1713991848572,-2015.75,0.00012328,2]
[323441828,1713991848582,-500.0,0.00012328,2]
[323441829,1713991848592,-1275.63,0.00012328,2]
[323441830,1713991848602,-696.19,0.00012328,2]
[323441831,1713991848610,-1820.17,0.00012328,2]
[323441832,1713991848622,-947.66,0.00012328,2]
[323441833,1713991848632,-1464.99,0.00012328,2]
[323441834,1713991848640,-2801.3,0.00012328,2]
[323441835,1713991848650,-41852.14,0.00012328,2]
[323441836,1713991848661,-500.0,0.00012328,2]
[323441837,1713991848670,-500.0,0.00012328,2]
[323441838,1713991848679,-1433.62,0.00012328,2]
[323441839,1713991848688,-1096.33,0.00012328,2]
[323441840,1713991848698,-1204.62,0.00012328,2]
[323441841,1713991848707,-1145.17,0.00012328,2]
[323441842,1713991848716,-670.73,0.00012328,2]
[323441843,1713991848726,-818.13,0.00012328,2]
[323441844,1713991848735,-802.18,0.00012328,2]
[323441845,1713991848745,-500.0,0.00012328,2]
[323441846,1713991848754,-27802.61,0.00012328,2]
[323441847,1713991848763,-926.5,0.00012328,2]
[323441848,1713991848772,-956.63,0.00012328,2]
[323441849,1713991848783,-1022.62,0.00012328,2]
[323441850,1713991848792,-807.35,0.00012328,2]
[323441851,1713991848801,-1268.18,0.00012328,2]
[323441852,1713991848810,-552.13,0.00012328,2]
[323441853,1713991848819,-1304.69,0.00012328,2]
[323441854,1713991848828,-745.21,0.00012328,2]
[323441855,1713991848837,-1518.01,0.00012328,2]
[323441856,1713991848846,-1258.54,0.00012328,2]
[323441857,1713991848855,-500.0,0.00012328,2]
[323441858,1713991848864,-1273.21,0.00012328,2]
[323441859,1713991848873,-500.0,0.00012328,2]
[323441860,1713991848882,-855.16,0.00012328,2]
[323441861,1713991848891,-3556.77,0.00012328,2]
[323441862,1713991848900,-661.08,0.00012328,2]
[323441863,1713991848910,-1147.95,0.00012328,2]
[323441864,1713991848919,-616.17,0.00012328,2]
[323441865,1713991848929,-500.0,0.00012328,2]
[323441866,1713991848939,-711.37,0.00012328,2]
[323441867,1713991848947,-1278.88,0.00012328,2]
[323441868,1713991848956,-500.0,0.00012328,2]
[323441869,1713991848966,-630.07,0.00012328,2]
[323441870,1713991848975,-1352.75,0.00012328,2]
[323441871,1713991848985,-1942.44,0.00012328,2]
[323441872,1713991848994,-500.0,0.00012328,2]
[323441873,1713991849003,-1004.93,0.00012328,2]
[323441874,1713991849012,-500.0,0.00012328,2]
[323441875,1713991849022,-500.0,0.00012328,2]
[323441876,1713991849032,-607.85,0.00012328,2]
[323441877,1713991849041,-970.3,0.00012328,2]
[323441878,1713991849051,-500.0,0.00012328,2]
[323441879,1713991849060,-500.0,0.00012328,2]
[323441880,1713991849069,-2785.8,0.00012328,2]
[323441881,1713991849078,-1408.5,0.00012328,2]
[323441882,1713991849087,-2017.97,0.00012328,2]
[323441883,1713991849097,-1253.8,0.00012328,2]
[323441884,1713991849106,-2871.24,0.00012328,2]
[323441885,1713991849116,-500.0,0.00012328,2]
[323441886,1713991849125,-438.589051,0.00012328,2]
[323441887,1713991849135,-1364.69,0.00012328,2]
[323441888,1713991849144,-556.02,0.00012328,2]
[323441889,1713991849153,-1040.15,0.00012328,2]
[323441890,1713991849164,-2840.23,0.00012328,2]
[323441891,1713991849173,-500.0,0.00012328,2]
[323441892,1713991849183,-2059.51,0.00012328,2]
[323441893,1713991849192,-500.0,0.00012328,2]
[323441894,1713991849201,-715.7,0.00012328,2]
[323441895,1713991849210,-500.0,0.00012328,2]
[323441896,1713991849220,-544.33,0.00012328,2]
[323441897,1713991849229,-1817.33,0.00012328,2]
[323441898,1713991849238,-1548.88,0.00012328,2]
[323441899,1713991849247,-987.87,0.00012328,2]
[323441900,1713991849256,-616.24,0.00012328,2]
[323441901,1713991849264,-500.0,0.00012328,2]
[323441902,1713991849274,-3875.02,0.00012328,2]
[323441903,1713991849283,-500.0,0.00012328,2]
[323441904,1713991849292,-1544.0,0.00012328,2]
[323441905,1713991849304,-500.0,0.00012328,2]
[323441906,1713991849314,-1231.43,0.00012328,2]
[323441907,1713991849322,-2789.34,0.00012328,2]
[323441908,1713991849331,-3734.67,0.00012328,2]
[323441909,1713991849342,-8238.28,0.00012328,2]
[323441910,1713991849351,-1407.11,0.00012328,2]
[323441911,1713991849360,-500.0,0.00012328,2]
[323441912,1713991849368,-500.0,0.00012328,2]
[323441913,1713991849380,-1307.71,0.00012328,2]
[323441914,1713991849390,-1027.0,0.00012328,2]
[323441915,1713991849399,-835.89,0.00012328,2]
[323441916,1713991849410,-1276.67,0.00012328,2]
[323441917,1713991849418,-500.0,0.00012328,2]
[323441918,1713991849427,-500.0,0.00012328,2]
[323441919,1713991849436,-1932.45,0.00012328,2]
[323441920,1713991849445,-1468.72,0.00012328,2]
[323441921,1713991849454,-500.0,0.00012328,2]
[323441922,1713991849464,-713.89,0.00012328,2]
[323441923,1713991849474,-846.41,0.00012328,2]
[323441924,1713991849483,-8052.86,0.00012328,2]
[323441925,1713991849494,-500.0,0.00012328,2]
[323441926,1713991849503,-677.71,0.00012328,2]
[323441927,1713991849512,-2612.05442845,0.0001233,2]
[323441928,1713991849521,-795.25569105,0.0001233,2]
[323441929,1713991849530,-5000.0,0.00012336,2]
[323441930,1713991849540,-10719.32113538,0.00012357,2]
[323441931,1713991849549,-1030.5412573,0.00012365,3]
[323441932,1713991849559,-5000.0,0.00012366,2]
[323441933,1713991849571,-10000.0,0.00012398,2]
[323441934,1713991849581,-1141.75,0.000124,2]
[323441935,1713991849591,-266.31372901,0.00012425,2]
[323441936,1713991849601,-5000.0,0.00012443,2]
[323441937,1713991849611,-5000.0,0.00012446,2]
[323441938,1713991849621,-208.61,0.00012458,2]
[323441939,1713991849630,-5000.0,0.00012484,2]
[323441940,1713991849638,-10719.32113538,0.00012493,2]
[323441941,1713991849647,-4046.44,0.00012493,2]
[323441942,1713991849657,-384.27272631,0.000125,2]
[323441943,1713991849667,-4400.0,0.000125,4]
[323441944,1713991849676,-5000.0,0.00012504,2]
[323441945,1713991849686,-604.4,0.00012543,2]
[323441946,1713991849695,-5000.0,0.00012548,2]
[323441947,1713991849704,-3047.55,0.00012553,2]
[323441948,1713991849713,-191.2,0.00012594,2]
[323441949,1713991849722,-4400.0,0.000126,4]
[323441950,1713991849731,-500.0,0.00012602,2]
[323441951,1713991849739,-1035.0,0.00012602,2]
[323441952,1713991849748,-500.0,0.00012602,2]
[323441953,1713991849757,-284.68,0.00012602,2]
[323441954,1713991849766,-647.06,0.00012602,2]
[323441955,1713991849775,-500.0,0.00012602,2]
[323441956,1713991849785,-500.0,0.00012602,2]
[323441957,1713991849794,-840.66,0.00012602,2]
[323441958,1713991849803,-805.34,0.00012602,2]
[323441959,1713991849812,-856.22,0.00012602,2]
[323441960,1713991849821,-500.0,0.00012602,2]
[323441961,1713991849830,-500.0,0.00012602,2]
[323441962,1713991849839,-500.0,0.00012602,2]
[323441963,1713991849848,-500.0,0.00012602,2]
[323441964,1713991849857,-500.0,0.00012602,2]
[323441965,1713991849866,-615.27,0.00012602,2]
[323441966,1713991849874,-574.89,0.00012602,2]
[323441967,1713991849883,-591.14,0.00012602,2]
[323441968,1713991849892,-150.0,0.00012602,2]
[323441969,1713991849901,-859.61,0.00012602,2]
[323441970,1713991849913,-506.23,0.00012602,2]
[323441971,1713991849922,-842.34,0.00012602,2]
[323441972,1713991849932,-548.43,0.00012602,2]
[323441973,1713991849941,-500.0,0.00012602,2]
[323441974,1713991849950,-500.0,0.00012602,2]
[323441975,1713991849959,-500.0,0.00012602,2]
[323441976,1713991849969,-665.53,0.00012602,2]
[323441977,1713991849978,-500.0,0.00012602,2]
[323441978,1713991849988,-500.0,0.00012602,2]
[323441979,1713991849998,-2258.755748,0.00012602,2]
[323441980,1713991850007,-500.0,0.00012602,2]
[323441981,1713991850016,-2258.755748,0.00012602,2]
[323441982,1713991850025,-736.69,0.00012602,2]
[323441983,1713991850034,-826.15,0.00012602,2]
[323441984,1713991850044,-500.0,0.00012602,2]
[323441985,1713991850053,-500.0,0.00012602,2]
[323441986,1713991850063,-649.2945724,0.00012602,2]
[323441987,1713991850073,-807.78,0.00012602,2]
[323441988,1713991850082,-2038.9,0.00012602,2]
[323441989,1713991850091,-705.7,0.00012602,2]
[323441990,1713991850100,-1307.93,0.00012602,2]
[323441991,1713991850110,-546.95,0.00012602,2]
[323441992,1713991850120,-1642.17,0.00012602,2]
[323441993,1713991850129,-3738.06,0.00012602,2]
[323441994,1713991850138,-805.45,0.00012602,2]
[323441995,1713991850147,-500.0,0.00012602,2]
[323441996,1713991850158,-553.75,0.00012602,2]
[323441997,1713991850168,-172.00671058,0.00012602,2]
[323441998,1713991850177,-1911.86,0.00012602,2]
[323441999,1713991850186,-500.0,0.00012602,2]
[323442000,1713991850195,-1296.39,0.00012602,2]
[323442001,1713991850204,-690.75,0.00012602,2]
[323442002,1713991850213,-500.0,0.00012602,2]
[323442003,1713991850222,-857.69,0.00012602,2]
[323442004,1713991850232,-2921.56,0.00012602,2]
[323442005,1713991850241,-1941.91,0.00012602,2]
[323442006,1713991850250,-936.37,0.00012602,2]
[323442007,1713991850259,-500.0,0.00012602,2]
[323442008,1713991850268,-1967.54,0.00012602,2]
[323442009,1713991850278,-500.0,0.00012602,2]
[323442010,1713991850287,-3113.04,0.00012602,2]
[323442011,1713991850298,-621.85,0.00012602,2]
[323442012,1713991850309,-611.57,0.00012602,2]
[323442013,1713991850318,-2015.75,0.00012602,2]
[323442014,1713991850328,-500.0,0.00012602,2]
[323442015,1713991850443,-1275.63,0.00012602,2]
[323442016,1713991850453,-696.19,0.00012602,2]
[323442017,1713991850462,-1820.17,0.00012602,2]
[323442018,1713991850472,-947.66,0.00012602,2]
[323442019,1713991850482,-1464.99,0.00012602,2]
[323442020,1713991850492,-2801.3,0.00012602,2]
[323442021,1713991850502,-41852.14,0.00012602,2]
[323442022,1713991850512,-500.0,0.00012602,2]
[323442023,1713991850521,-500.0,0.00012602,2]
[323442024,1713991850530,-1433.62,0.00012602,2]
[323442025,1713991850540,-1096.33,0.00012602,2]
[323442026,1713991850551,-1204.62,0.00012602,2]
[323442027,1713991850561,-1145.17,0.00012602,2]
[323442028,1713991850571,-670.73,0.00012602,2]
[323442029,1713991850581,-818.13,0.00012602,2]
[323442030,1713991850590,-802.18,0.00012602,2]
[323442031,1713991850600,-538.53777411,0.00012602,2]
[323442032,1713991850610,-27802.61,0.00012602,2]
[323442033,1713991850619,-926.5,0.00012602,2]
[323442034,1713991850629,-956.63,0.00012602,2]
[323442035,1713991850639,-1022.62,0.00012602,2]
[323442036,1713991850648,-807.35,0.00012602,2]
[323442037,1713991850658,-1268.18,0.00012602,2]
[323442038,1713991850667,-552.13,0.00012602,2]
[323442039,1713991850676,-1304.69,0.00012602,2]
[323442040,1713991850686,-745.21,0.00012602,2]
[323442041,1713991850695,-1518.01,0.00012602,2]
[323442042,1713991850705,-1258.54,0.00012602,2]
[323442043,1713991850714,-500.0,0.00012602,2]
[323442044,1713991850724,-1273.21,0.00012602,2]
[323442045,1713991850734,-500.0,0.00012602,2]
[323442046,1713991850743,-855.16,0.00012602,2]
[323442047,1713991850752,-3556.77,0.00012602,2]
[323442048,1713991850762,-661.08,0.00012602,2]
[323442049,1713991850771,-1147.95,0.00012602,2]
[323442050,1713991850780,-616.17,0.00012602,2]
[323442051,1713991850790,-378.655689,0.00012602,2]
[323442052,1713991850799,-500.0,0.00012602,2]
[323442053,1713991850808,-711.37,0.00012602,2]
[323442054,1713991850817,-378.655689,0.00012602,2]
[323442055,1713991850826,-1278.88,0.00012602,2]
[323442056,1713991850836,-500.0,0.00012602,2]
[323442057,1713991850846,-630.07,0.00012602,2]
[323442058,1713991850855,-1352.75,0.00012602,2]
[323442059,1713991850864,-1942.44,0.00012602,2]
[323442060,1713991850874,-500.0,0.00012602,2]
[323442061,1713991850883,-1004.93,0.00012602,2]
[323442062,1713991850893,-500.0,0.00012602,2]
[323442063,1713991850902,-500.0,0.00012602,2]
[323442064,1713991850913,-607.85,0.00012602,2]
[323442065,1713991850923,-970.3,0.00012602,2]
[323442066,1713991850933,-500.0,0.00012602,2]
[323442067,1713991850942,-500.0,0.00012602,2]
[323442068,1713991850951,-2785.8,0.00012602,2]
[323442069,1713991850961,-1408.5,0.00012602,2]
[323442070,1713991850971,-2017.97,0.00012602,2]
[323442071,1713991850981,-1253.8,0.00012602,2]
[323442072,1713991850990,-2871.24,0.00012602,2]
[323442073,1713991851000,-500.0,0.00012602,2]
[323442074,1713991851009,-1364.69,0.00012602,2]
[323442075,1713991851019,-556.02,0.00012602,2]
[323442076,1713991851030,-1040.15,0.00012602,2]
[323442077,1713991851041,-2840.23,0.00012602,2]
[323442078,1713991851051,-500.0,0.00012602,2]
[323442079,1713991851061,-2059.51,0.00012602,2]
[323442080,1713991851071,-500.0,0.00012602,2]
[323442081,1713991851081,-715.7,0.00012602,2]
[323442082,1713991851092,-500.0,0.00012602,2]
[323442083,1713991851101,-544.33,0.00012602,2]
[323442084,1713991851111,-1817.33,0.00012602,2]
[323442085,1713991851121,-1548.88,0.00012602,2]
[323442086,1713991851131,-987.87,0.00012602,2]
[323442087,1713991851141,-616.24,0.00012602,2]
[323442088,1713991851151,-176.28877413,0.00012602,2]
[323442089,1713991851163,-3875.02,0.00012602,2]
[323442090,1713991851173,-500.0,0.00012602,2]
[323442091,1713991851183,-1544.0,0.00012602,2]
[323442092,1713991851193,-500.0,0.00012602,2]
[323442093,1713991851203,-1231.43,0.00012602,2]
[323442094,1713991851213,-2789.34,0.00012602,2]
[323442095,1713991851222,-3734.67,0.00012602,2]
[323442096,1713991851232,-8238.28,0.00012602,2]
[323442097,1713991851242,-1407.11,0.00012602,2]
[323442098,1713991851251,-500.0,0.00012602,2]
[323442099,1713991851260,-173.99305141,0.00012602,2]
[323442100,1713991851270,-1307.71,0.00012602,2]
[323442101,1713991851279,-1027.0,0.00012602,2]
[323442102,1713991851288,-835.89,0.00012602,2]
[323442103,1713991851298,-1276.67,0.00012602,2]
[323442104,1713991851309,-500.0,0.00012602,2]
[323442105,1713991851318,-500.0,0.00012602,2]
[323442106,1713991851328,-1932.45,0.00012602,2]
[323442107,1713991851338,-1468.72,0.00012602,2]
[323442108,1713991851348,-500.0,0.00012602,2]
[323442109,1713991851358,-713.89,0.00012602,2]
[323442110,1713991851369,-846.41,0.00012602,2]
[323442111,1713991851380,-8052.86,0.00012602,2]
[323442112,1713991851390,-500.0,0.00012602,2]
[323442113,1713991851399,-677.71,0.00012602,2]
[323442114,1713991851410,-5000.0,0.0001262,2]
[323442115,1713991851420,-5000.0,0.00012623,2]
[323442116,1713991851429,-5000.0,0.00012627,2]
[323442117,1713991851439,-10719.32113538,0.00012628,2]
[323442118,1713991851448,-25000.0,0.0001265,2]
[323442119,1713991851458,-10000.0,0.00012656,2]
[323442120,1713991851467,-368.07,0.00012656,2]
[323442121,1713991851477,-5000.0,0.00012668,2]
[323442122,1713991851486,-5000.0,0.00012679,2]
[323442123,1713991851496,-5000.0,0.00012686,2]
[323442124,1713991851506,-5000.0,0.00012688,2]
[323442125,1713991851515,-4400.0,0.000127,4]
[323442126,1713991851525,-25000.0,0.00012712,2]
[323442127,1713991851535,-2602.63,0.00012743,2]
[323442128,1713991851545,-10000.0,0.00012748,2]
[323442129,1713991851555,-10719.32113538,0.00012764,2]
[323442130,1713991851565,-5000.0,0.00012767,2]
[323442131,1713991851574,-5000.0,0.00012767,2]
[323442132,1713991851585,-10000.0,0.0001278,2]
[323442133,1713991851595,-2966.77,0.00012788,2]